Cogmind - Beta 13 @@@ ROGUE MODE // 2024.03.31 @ 17:44:09 Player: double j Result: Destroyed by G-47 Trooper with Particle Gun Performance ------------- Evolutions (2) 1000 Regions Visited (3) 600 Robots Destroyed (23) 115 Value Destroyed (642) 642 Prototype IDs (0) 0 Alien Tech Used (0) 0 Bonus (0) 0 TOTAL SCORE: 2357 Bonus ------- None Cogmind --------- Core Integrity 0/550 Matter 26/300 Energy 100/100 System Corruption 0% Temperature Cool (9) Movement Core (1350) Ox26 Location -8/Materials Parts ------- > --- POWER (1) -------- (None) > --- PROPULSION (2) --- (None) > --- UTILITY (6) ------ Huge Storage Unit Visual Processing Unit Terrain Scan Processor > --- WEAPON (2) ------- (None) > --- INVENTORY (25) --- Light Ion Engine Improved Heat Sink Advanced Weight Redist. System Structural Scanner Advanced Targeting Computer Advanced Assault Cannon Remote Datajack Peak State ------------ > --- POWER ------------ (None) > --- PROPULSION ------- Light Treads > --- UTILITY ---------- Heat Sink Huge Storage Unit Visual Processing Unit Terrain Scanner Terrain Scan Processor Targeting Computer > --- WEAPON ----------- Improved Light Cannon Mini Grenade Launcher > --- INVENTORY -------- Light Ion Engine Structural Scanner [Rating: 13] Favorites ----------- Power Ion Engine Engine Ion Engine Propulsion Light Treads Treads Light Treads Utility Huge Storage Unit Device Heat Sink Storage Huge Storage Unit Processor Visual Processing Unit Protection Backup Plating I Weapon Grenade Launcher Energy Gun Particle Gun Ballistic Gun Assault Rifle Ballistic Cannon Improved Light Cannon Launcher Grenade Launcher Build | -11 -10 -9 -8 ------- Run | Yrd Mat Mat Mat Slots Evolved 4 | . . 2 2 Power . | . . . . Propulsion . | . . . . Utility 4 | . . 2 2 Weapon . | . . . . Parts Attached 23 | 5 2 14 2 Power 3 | 1 . 2 . Engine 3 | 1 . 2 . Core . | . . . . Reactor . | . . . . Propulsion 3 | 2 . 1 . Treads 3 | 2 . 1 . Leg . | . . . . Wheel . | . . . . Hover . | . . . . Flight . | . . . . Utility 8 | 1 1 4 2 Device 2 | . . 1 1 Storage 2 | 1 . 1 . Processor 4 | . 1 2 1 Hackware . | . . . . Protection . | . . . . Artifact . | . . . . Weapon 9 | 1 1 7 . Energy Gun 1 | . . 1 . Energy Cannon . | . . . . Ballistic Gun 2 | 1 . 1 . Ballistic Cannon 1 | . . 1 . Launcher 5 | . 1 4 . Special Weapon . | . . . . Impact Weapon . | . . . . Slashing Weapon . | . . . . Piercing Weapon . | . . . . Special Melee Weapon . | . . . . Unidentified Prototypes . | . . . . Parts Lost 16 | . . 11 5 Power 3 | . . 3 . Propulsion 3 | . . 2 1 Utility 3 | . . 1 2 Weapon 7 | . . 5 2 Highest Loss Streak 6 | . . 6 4 To Critical Strikes . | . . . . Average Slot Usage (%) 65 | . 95 55 69 Engine 6 | . 14 6 . Treads 9 | . 28 4 8 Device 7 | . . 6 17 Storage 11 | . 14 11 9 Processor 13 | . . 14 18 Protection 1 | . 11 . . Energy Gun 1 | . 3 1 . Ballistic Gun 3 | . 14 1 . Ballistic Cannon 3 | . . 3 7 Launcher 7 | . 8 6 8 Naked Turns . | . . . . Heaviest Build 91 | 12 16 91 87 Greatest Support 40 | 40 40 40 20 Greatest Overweight (x) 29 | 1 . 29 27 Average Overweight (x) 4 | . . 13 4 Largest Inventory Capacity 25 | 8 8 25 25 Average Capacity 21 | 7 8 24 25 Most Carried 8 | 5 8 8 7 Average Carried 3 | 2 4 3 5 Final Capacity 25 | 8 8 25 25 Final Carried 7 | 2 7 4 7 Class Distribution -------------------- 81% | Mutant 18% | Skirmisher Dominant Class ---------------- Mutant | -10/Materials Mutant | -9/Materials Skirmisher | -8/Materials Resources | -11 -10 -9 -8 ----------- Run | Yrd Mat Mat Mat Matter Collected 502 | 229 83 190 . Remotely . | . . . . Salvage Created 479 | . 200 279 . Parts 50 | . 20 30 . Haulers Intercepted . | . . . . Recyclers Shooed 1 | . . 1 . Parts Field Recycled . | . . . . Retrieved Matter . | . . . . Parts Self-Destructed . | . . . . Prevented . | . . . . Kills | -11 -10 -9 -8 ------- Run | Yrd Mat Mat Mat Combat Hostiles Destroyed 18 | . 5 13 . Guns 4 | . 1 3 . Cannons 2 | . . 2 . AOE 12 | . 4 8 . Classes Destroyed 7 | . 3 4 . Worker 2 | . 2 . . Builder 2 | . 1 1 . Mechanic 1 | . . 1 . Swarmer 3 | . . 3 . Grunt 9 | . 5 4 . Brawler 1 | . . 1 . Sentry 5 | . . 5 . Best Kill Streak 5 | . 5 5 . Combat Bots Only 4 | . 3 4 . Max Kills in Single Turn 3 | . 3 3 . Gunslinging . | . . . . Exploded 3 | . 2 3 . Melee . | . . . . Uniques/NPCs Destroyed . | . . . . Combat | -11 -10 -9 -8 -------- Run | Yrd Mat Mat Mat Hostile Shots Fired 224 | . 11 130 83 Missed 54 | . 3 33 18 Damage Taken 2593 | . 88 1506 999 Core 946 | . 44 344 558 Absorbed by Shields . | . . . . Regen/Repaired (Parts) 56 | . . 56 . Core Remaining (%) 65 | 100 82 14 . Volleys Fired 66 | . 14 52 . Largest 2 | . 2 2 . Hottest 69 | . 50 69 . Shots Fired 69 | . 16 53 . Gun 36 | . 13 23 . Cannon 10 | . . 10 . Launcher 23 | . 3 20 . Special . | . . . . Kinetic 34 | . 11 23 . Thermal 12 | . 2 10 . Explosive 23 | . 3 20 . Electromagnetic . | . . . . Robot Hit Streak 16 | . 6 16 . Robot Miss Streak 5 | . 5 2 . Penetration Max . | . . . . Secondary Targets . | . . . . Shots Hit Robots 47 | . 8 39 . Core Hits 37 | . 11 26 . Critical Kills . | . . . . Critical Parts Destroyed . | . . . . Critical Strikes . | . . . . Melee Attacks . | . . . . Impact . | . . . . Slashing . | . . . . Piercing . | . . . . Sneak Attacks . | . . . . Combat Hostiles . | . . . . Follow-up Attacks . | . . . . Damage Inflicted 1683 | . 418 1265 . Guns 333 | . 84 249 . Cannons 167 | . . 167 . Explosions 1180 | . 331 849 . Melee . | . . . . Ramming 3 | . 3 . . Kinetic 369 | . 66 303 . Thermal 219 | . 106 113 . Explosive 1092 | . 243 849 . Electromagnetic . | . . . . Impact . | . . . . Slashing . | . . . . Piercing . | . . . . Highest Corruption 8 | . . 8 . Average Corruption 7 | . . 7 . Corruption Purged . | . . . . Corruption Blocked . | . . . . Effects 56 | . . 56 . Message Errors 11 | . . 11 . Matter Fused 13 | . . 13 . Heat Flow Errors 4 | . . 4 . Energy Discharges 9 | . . 9 . Parts Fused 2 | . . 2 . Data Loss (minor) 7 | . . 7 . Data Loss (major) 2 | . . 2 . Misfires 2 | . . 2 . Alerts 4 | . . 4 . Weapon Failures 2 | . . 2 . Overload Shots . | . . . . Overflow Damage 21 | . . 21 . Projectiles . | . . . . Explosions 21 | . . 21 . Melee . | . . . . Knockbacks . | . . . . Impact . | . . . . Kinetic . | . . . . Secondary . | . . . . Self-Inflicted Damage 155 | . . 155 . Shots 7 | . . 7 . Rammed 2 | . 1 1 . Targets Rammed 2 | . 1 1 . Kicked . | . . . . Crushed . | . . . . Highest Temperature 186 | . 3 186 . Average Temperature 53 | . 2 55 . Received Heat Transfer 1206 | . 48 519 639 Siege Activations . | . . . . Robots Corrupted . | . . . . Combat Hostiles . | . . . . Parts Fried . | . . . . Impact Corruptions . | . . . . Robots Melted . | . . . . Combat Hostiles . | . . . . Parts Melted . | . . . . Heat Transferred 383 | . 124 259 . Parts Sabotaged . | . . . . Parts Stolen . | . . . . Parts Stripped . | . . . . Power Chain Reactions . | . . . . Alert | -11 -10 -9 -8 ------- Run | Yrd Mat Mat Mat Peak Influence 235 | . 220 235 3 Initial 24 | . . 24 3 Average 48 | . 68 66 1 Maximum Alert Level 1 | . 1 1 . Low Security (%) 92 | 100 88 90 100 Level 1 7 | . 11 9 . Level 2 . | . . . . Level 3 . | . . . . Level 4 . | . . . . Level 5 . | . . . . High Security . | . . . . Max Security . | . . . . Squads Dispatched 7 | . 6 1 . Investigation 3 | . 3 . . Extermination . | . . . . Reinforcement 4 | . 3 1 . Assault . | . . . . Garrison . | . . . . Intercept . | . . . . Searches Triggered . | . . . . Construction Impeded . | . . . . Haulers Reinforced . | . . . . Active Scanning Responses . | . . . . Cargo Convoy Interrupts . | . . . . Stealth | -11 -10 -9 -8 --------- Run | Yrd Mat Mat Mat Distress Signals 1 | . 1 . . Communications Jammed . | . . . . Distress Signals . | . . . . Times Spotted 30 | . 11 16 3 Peak Tracking Total 5 | . 3 5 2 Tactical Retreats 2 | . 2 . . Traps | -11 -10 -9 -8 ------- Run | Yrd Mat Mat Mat Traps Triggered . | . . . . Indirectly . | . . . . Trap Hack Attempts . | . . . . Triggered . | . . . . Disarmed . | . . . . Reprogrammed . | . . . . Reused . | . . . . Traps Extracted . | . . . . Installed . | . . . . Triggered . | . . . . Machines | -11 -10 -9 -8 ---------- Run | Yrd Mat Mat Mat Machines Disabled 2 | . 1 1 . Max in Single Turn 1 | . 1 1 . Machines Repaired . | . . . . Machines Dismantled . | . . . . Machines Sabotaged . | . . . . Overloaded Fab Kills . | . . . . Hacking | -11 -10 -9 -8 --------- Run | Yrd Mat Mat Mat Machines Accessed 7 | . 5 2 . Terminals 2 | . 2 . . Fabricators . | . . . . Repair Stations 2 | . 1 1 . Recycling Units 3 | . 2 1 . Scanalyzers . | . . . . Garrison Access . | . . . . Total Hacks 22 | . 18 4 . Successful 13 | . 10 3 . Failed 9 | . 8 1 . Catastrophic 2 | . 2 . . Database Lockouts . | . . . . Manual . | . . . . Terminals 4 | . 4 . . Fabricators . | . . . . Repair Stations 5 | . 3 2 . Recycling Units 13 | . 11 2 . Scanalyzers . | . . . . Garrison Access . | . . . . Terminal Hacks 2 | . 2 . . Record 1 | . 1 . . Patrol Status 1 | . 1 . . Fabricator Hacks . | . . . . Repair Station Hacks 3 | . 1 2 . Scan Component 1 | . . 1 . Repair 1 | . . 1 . Refit 1 | . 1 . . Recycling Unit Hacks 8 | . 7 1 . Recycle Component 1 | . 1 . . Process 3 | . 3 . . Report Inventory 1 | . 1 . . Retrieve Matter 1 | . 1 . . Retrieve Components 2 | . 1 1 . Scanalyzer . | . . . . Garrison Access Hacks . | . . . . Unauthorized Hacks . | . . . . Terminals . | . . . . Fabricators . | . . . . Repair Stations . | . . . . Recycling Units . | . . . . Scanalyzers . | . . . . Garrison Access . | . . . . Data Cores Recovered . | . . . . Used . | . . . . Hacking Detections 4 | . 3 1 . Full Trace Events 1 | . 1 . . Feedback Events . | . . . . Feedback Blocked . | . . . . Robot Schematics Acquired . | . . . . Robots Built . | . . . . Authchips . | . . . . Time . | . . . . Total Robot Build Rating . | . . . . Part Schematics Acquired . | . . . . Parts Built . | . . . . Authchips . | . . . . Time . | . . . . Total Part Build Rating . | . . . . Parts Repaired 1 | . . 1 . Time 26 | . . 26 . Parts Recycled 1 | . 1 . . Recycled Matter 148 | . 148 . . Retrieved Matter 147 | . 147 . . Retrieved Components 10 | . . 10 . Parts Scanalyzed . | . . . . Part Schematics Acquired . | . . . . Parts Damaged . | . . . . Bothacking | -11 -10 -9 -8 ------------ Run | Yrd Mat Mat Mat Used RIF Installer . | . . . . Robots Hacked . | . . . . Non-combat . | . . . . Combat . | . . . . Robot Hacks Applied . | . . . . Relay Couplers Released . | . . . . Fabnet Peak Effective % . | . . . . Robots Rewired . | . . . . Allies Hacked . | . . . . Hacks Repelled . | . . . . Allies | -11 -10 -9 -8 -------- Run | Yrd Mat Mat Mat Total Allies . | . . . . Largest Group . | . . . . Highest-Rated Group . | . . . . Highest-Rated Ally . | . . . . Total Orders . | . . . . Ally Attacks . | . . . . Total Damage . | . . . . Kills . | . . . . Allies Corrupted . | . . . . Allies Melted . | . . . . Intel | -11 -10 -9 -8 ------- Run | Yrd Mat Mat Mat Robot Analysis Total . | . . . . Derelict Logs Recovered . | . . . . Drone Launches . | . . . . Drone Recoveries . | . . . . Exploration | -11 -10 -9 -8 ------------- Run | Yrd Mat Mat Mat Turns Passed 3213 | 186 505 1818 704 Spaces Moved 699 | 72 287 202 138 Core 137 | 47 . 86 4 Treads 562 | 25 287 116 134 Legs . | . . . . Wheels . | . . . . Hover . | . . . . Flight . | . . . . Fastest Speed 50 | 50 160 160 480 Average Speed 411 | 89 160 818 505 Slowest Speed 1500 | 160 160 1500 1400 Overloaded Moves . | . . . . Propulsion Burnouts . | . . . . Robots Hopped . | . . . . Cave-ins Triggered . | . . . . Exploration Rate (%) 25 | 6 62 22 13 Regions Visited 3 Branch Regions . Pre-discovered Areas . | . . . . Known Exits Taken 1 | . 1 . . Unknown Exits Taken 2 | 1 . 1 . Scrap Searched . | . . . . Spaces Dug . | . . . . Terrain Destroyed 131 | . 23 108 . Melee . | . . . . Projectile . | . . . . AOE 131 | . 23 108 . Terrain Rammed . | . . . . Walls Destroyed . | . . . . Machines Disabled . | . . . . Actions | -11 -10 -9 -8 --------- Run | Yrd Mat Mat Mat Total 970 | 193 317 314 146 Wait 150 | 111 4 35 . Move 696 | 71 286 201 138 Hop . | . . . . Pick Up 29 | 6 8 10 5 Fast Attach 1 | 1 . . . Attach 21 | 4 2 13 2 Detach . | . . . . Swap 1 | . . 1 . Drop 4 | . 2 1 1 Fire 66 | . 14 52 . Melee . | . . . . Ram . | . . . . Kick . | . . . . Crush 2 | . 1 1 . Escape Stasis . | . . . . Rewire . | . . . . Trap . | . . . . Miscellaneous . | . . . . Route ------- -11/Scrapyard -10/Materials (discovered 3 exits: *Mat x2 / [*Min]) -9/Materials -8/Materials History --------- Turn | Location | Event 4 | -11/Scrapyard | Discovered new exit (range 15) 187 | -11/Scrapyard | Entered Materials 302 | -10/Materials | Build established: Mutant 518 | -10/Materials | Discovered new exit (range 14) 580 | -10/Materials | Discovered new exit (range 13) 672 | -10/Materials | Discovered new exit (range 10) 690 | -10/Materials | Identified exit to Materials 692 | -10/Materials | Entered another Materials area 692 | -9/Materials | Evolved 2 slots: Utility x2 978 | -9/Materials | Lost 6 parts (1p2n1u2w) 1236 | -9/Materials | Core integrity fell below 50% 1599 | -9/Materials | Repaired Grenade Launcher 2137 | -9/Materials | Core integrity fell below 20% 2364 | -9/Materials | Discovered new exit (range 10) 2510 | -9/Materials | Entered another Materials area 2510 | -8/Materials | Evolved 2 slots: Utility x2 2810 | -8/Materials | Build established: Skirmisher 3178 | -8/Materials | Core integrity fell below 50% 3202 | -8/Materials | Core integrity fell below 20% 3214 | -8/Materials | Destroyed by G-47 Trooper with Particle Gun Last Messages --------------- PARAMETERS=UTILITY+2 LOCATION=UNKNOWN GOAL=ESCAPE Acquired Adv. Targeting Computer. Discarded Targeting Computer. Acquired Imp. Heat Sink. K-01 Serf cleans the Atomic Centrifuge. [Achievement: Oops] Acquired Adv. Assault Cannon. Acquired Remote Datajack. K-01 Serf cleans the Atomic Centrifuge. Acquired Adv. Weight Redist. System. Imp. Light Cannon destroyed. Critical hit (Burn: +37). Lgt. Treads destroyed. Atomic Centrifuge disabled. Terrain Scanner destroyed. Mni. Grenade Launcher destroyed. Heat Sink destroyed. Critical hit (Burn: +37). Map ----- +----------------------------------------------------+ | # ?????""?### || #?##] |||#? | | # ?"" """ ?## || #### #? | | ???? ??? #?# """ ##### ####? | | ? ?? ? ??## """ ##### ####? | | ?? ? ? ? ?## """ ##### #?### | | ?? ? ? ? ?## #??## #?##? | | #####+###########+######### ##### | | ^ #### ##### | | #### ##?## | | #### ##### | | ######## #?### | | ?############ #?###### ##### | | ?????#?###### ######## ##### | | ?????######?# ##### | | ?????##?##### ####? | | ??????#?##### ##### | | ????????#??## """ ##### | | ?????#??##??#### """ ##?#? | | ??????????#?##?# """ ###? | | ???????#?####?## #### | | ?????????? ###? | | ?????????#???######## """ #### | | ?????????????#####?## """ #### | | ?????????????##??#### """ #### | | ????????????##?###### ###? | | ????????????? ? #^ @ ###? | | ????????????? ?? ? # "" #### | | ???????????????? # ^" #### | | ????????????? ??? ?+ " #### | | ??????????????"??"" # ^ #### | | ?????????????????"" # ^gg ##?# | | ??????????????? """?# #?## | | ???????????????? # ^ ##?# | | ????????????+#?##?### #?#? | | ???????????????##?#?# #### | | ????????? ######## ]] #### | | ????????? ]] #### | | ????????? ] #### | | ???????????#+############## #?## | | ????????????? ########### #### | | ????????????? # # #### | | ????????????? # # #### | | ??????????"? # # #### | | ???????????? # + #### | | ?????????"?? ########### #### | | ????????? ? ? # # #### | | ?????????? ?? ?# # ##?# | | ?????????##?##### ! # ##?# | | ??????????##?#?## / + #### | | ??????#?????#?### # ##?# | +----------------------------------------------------+ Best States ------------- Heat Dissipation 41 Energy Generation 10 Energy Capacity 250 Matter Stores 300 Matter Capacity 300 Sight Range 18 Terrain Scan Range 14 Terrain Scan Density 85 Armor Coverage 80 Evasion (%) 50 Targeting Accuracy 5 Recoil Reduction 2 Item Schematics ----------------- None Robot Schematics ------------------ None Fabricated ------------ Nothing Alien Tech Used ----------------- None Achievements -------------- Maybe Next Time I'll Detach My Launcher Oops Challenges ------------ None Game ------ Seed RagnarokHeartCleaver Manual? 0 Play Time 00:24:07 Cumulative 3.6 hours Start 2024.03.31 @ 17:22:44 End 2024.03.31 @ 17:44:09 Sessions 1 Manual Loads 0 Difficulty Rogue Special Mode None Game No. 7 Rogue 7 Adventurer 0 Explorer 0 Win Type - Total 0 Types 0/0/0/0/0/0/0/0/0 Lore% 4 Gallery% 7 Achievement% 10 Wizard Run 0 Options --------- Layout 1 ASCII 0 Keyboard 0 Movement Mouse Keybinds 0 Fullscreen 1 Font 24/Smallcaps Map View 50x35 Zoom Use 0% Tactical HUD 0 Map Filters NONE Filters NONE Steam 1 RUN: ebf89fe1-4892-4f24-9f1a-eede6c788f99